[Event "NOR-ch Elite 2019"]
[Site "Larvik"]
[Date "2019.07.09"]
[Round "5.4"]
[White "Elsness, Frode"]
[Black "Christiansen, Johan-Sebastian"]
[Result "0-1"]
[ECO "A13"]
[WhiteElo "2436"]
[BlackElo "2548"]
[Annotator "ChessBase"]
[PlyCount "116"]
[EventDate "2019.07.05"]
[EventType "swiss"]
[EventCountry "NOR"]
[SourceTitle "playchess.com"]
[Source "ChessBase"]
[SourceQuality "1"]
[TimeControl "40/5400+30:1800+30"]

1. c4 {[%emt 0:01:20]} e6 {[%emt 0:01:27]} 2. Nf3 {[%emt 0:00:00]} d5 {[%emt 0:00:09]} 3. g3 {[%emt 0:00:15]} Nf6 {[%emt 0:00:07]} 4. b3 {[%emt 0:02:57]} d4 {[%emt 0:01:32]} 5. e3 {[%emt 0:00:42]} Nc6 {[%emt 0:00:05]} 6. exd4 {[%emt 0:06:37]} Nxd4 {[%emt 0:00:23]} 7. Bb2 {[%emt 0:01:38]} Bc5 {[%emt 0:07:42]} 8. Bg2 {[%emt 0:00:30]} e5 {[%emt 0:00:02]} 9. O-O {[%emt 0:19:45]} O-O {[%emt 0:09:04]} 10. Nc3 {[%emt 0:09:42]} Bg4 {[%emt 0:26:13]} 11. d3 {[%emt 0:01:13]} c6 {[%emt 0:01:20]} 12. Na4 {[%emt 0:04:48]} Nd7 {[%emt 0:02:34]} 13. Rc1 {[%emt 0:11:42]} Qf6 {[%emt 0:10:38]} 14. Bxd4 {[%emt 0:00:52]} exd4 {[%emt 0:00:02]} 15. Nxc5 {[%emt 0:09:41]} Nxc5 {[%emt 0:00:11]} 16. b4 {[%emt 0:00:56]} Ne6 {[%emt 0:07:07]} 17. h3 {[%emt 0:00:12]} Bh5 {[%emt 0:00:09]} 18. Re1 {[%emt 0:02:35]} a5 {[%emt 0:00:24]} 19. b5 {[%emt 0:02:02]} Nc5 {[%emt 0:05:46]} 20. bxc6 {[%emt 0:01:54]} bxc6 {[%emt 0:00:14]} 21. Rc2 {[%emt 0:02:37]} h6 {[%emt 0:11:39]} 22. Rd2 {[%emt 0:03:18]} Rae8 {[%emt 0:04:03]} 23. Rxe8 {[%emt 0:03:45]} Rxe8 {[%emt 0:00:02]} 24. Re2 {[%emt 0:00:10]} Rxe2 {[%emt 0:09:43]} 25. Qxe2 {[%emt 0:00:02]} Bxf3 {[%emt 0:00:06]} 26. Bxf3 {[%emt 0:03:07]} g6 {[%emt 0:00:01]} 27. Kg2 {[%emt 0:01:54]} Kg7 {[%emt 0:00:01]} 28. Qd2 {[%emt 0:01:02]} a4 {[%emt 0:00:40]} 29. a3 {[%emt 0:01:24]} Qf5 {[%emt 0:02:04]} 30. Bxc6 {[%emt 0:01:32]} Nxd3 {[%emt 0:00:21]} 31. Kg1 {[%emt 0:02:08]} Ne5 {[%emt 0:00:43]} 32. Qxd4 {[%emt 0:00:44]} Qf6 {[%emt 0:00:04]} 33. Qd5 {[%emt 0:03:23]} Nxc6 {[%emt 0:00:05]} 34. Qb5 {[%emt 0:00:02]} Nd4 {[%emt 0:01:05]} 35. Qxa4 {[%emt 0:00:06]} Qf3 {[%emt 0:01:03]} 36. Qa7 {[%emt 0:00:29]} Nc2 {[%emt 0:00:23]} 37. a4 {[%emt 0:00:22]} Qd1+ {[%emt 0:00:35]} 38. Kh2 {[%emt 0:00:43]} Qd4 {[%emt 0:00:37]} 39. Qxd4+ {[%emt 0:01:07]} Nxd4 {[%emt 0:00:02]} 40. a5 {[%emt 0:01:06]} Kf6 {[%emt 0:00:17]} 41. Kg2 {[%emt 0:04:19]} Ke5 {[%emt 0:01:17]} 42. a6 {[%emt 0:01:44]} Nc6 {[%emt 0:00:04]} 43. Kf3 {[%emt 0:00:07]} Kd4 {[%emt 0:10:38]} 44. h4 {[%emt 0:14:11]} Kxc4 {[%emt 0:02:23]} 45. Ke4 {[%emt 0:00:44]} Kc5 {[%emt 0:04:36]} 46. a7 {[%emt 0:01:52]} Nxa7 {[%emt 0:00:06]} 47. Ke5 {[%emt 0:00:01]} Nb5 {[%emt 0:00:57]} 48. g4 {[%emt 0:02:04]} Nd6 {[%emt 0:01:57]} 49. Kf6 {[%emt 0:01:15]} Kd4 {[%emt 0:02:16]} 50. Kg7 {[%emt 0:03:22]} h5 {[%emt 0:00:33]} 51. gxh5 {[%emt 0:00:09]} gxh5 {[%emt 0:00:04]} 52. Kh6 {[%emt 0:00:03]} Ke5 {[%emt 0:00:23]} 53. Kxh5 {[%emt 0:00:09]} Kf5 {[%emt 0:00:28]} 54. Kh6 {[%emt 0:00:05]} Kg4 {[%emt 0:03:29]} 55. Kg7 {[%emt 0:01:27]} f5 {[%emt 0:00:06]} 56. Kf6 {[%emt 0:00:32]} Ne4+ {[%emt 0:00:05]} 57. Kg6 {[%emt 0:01:53]} Nxf2 {[%emt 0:00:13]} 58. h5 {[%emt 0:00:02]} Nh3 {[%emt 0:00:12]} 0-1

[Event "NOR-ch Elite 2019"]
[Site "Larvik"]
[Date "2019.07.09"]
[Round "5.6"]
[White "Hauge, Lars Oskar"]
[Black "Vestby-Ellingsen, Mads"]
[Result "1-0"]
[ECO "B20"]
[WhiteElo "2476"]
[BlackElo "2335"]
[Annotator "ChessBase"]
[PlyCount "59"]
[EventDate "2019.07.05"]
[EventType "swiss"]
[EventCountry "NOR"]
[SourceTitle "playchess.com"]
[Source "ChessBase"]
[SourceQuality "1"]
[TimeControl "40/5400+30:1800+30"]

1. e4 {[%emt 0:03:06]} c5 {[%emt 0:00:00]} 2. b3 {[%emt 0:00:04]} d6 {[%emt 0:04:23]} 3. Bb2 {[%emt 0:00:57]} e5 {[%emt 0:01:06]} 4. f4 {[%emt 0:01:18]} exf4 {[%emt 0:01:38]} 5. Nf3 {[%emt 0:00:04]} Nf6 {[%emt 0:01:21]} 6. Nc3 {[%emt 0:01:39]} Be7 {[%emt 0:03:31]} 7. d4 {[%emt 0:03:50]} O-O {[%emt 0:11:12]} 8. dxc5 {[%emt 0:08:26]} dxc5 {[%emt 0:01:56]} 9. Bc4 {[%emt 0:00:04]} Nc6 {[%emt 0:03:10]} 10. O-O {[%emt 0:02:09]} Bd6 {[%emt 0:17:14]} 11. Re1 {[%emt 0:26:18]} Ng4 {[%emt 0:11:23]} 12. Nd5 {[%emt 0:01:56]} Nce5 {[%emt 0:00:52]} 13. Bf1 {[%emt 0:03:27]} Nxf3+ {[%emt 0:12:18]} 14. Qxf3 {[%emt 0:01:24]} Ne5 {[%emt 0:02:17]} 15. Qc3 {[%emt 0:03:21]} Qg5 {[%emt 0:01:22]} 16. Kh1 {[%emt 0:01:29]} Qh6 {[%emt 0:03:09]} 17. Qd2 {[%emt 0:01:11]} Bd7 {[%emt 0:14:30]} 18. Qxf4 {[%emt 0:03:36]} Qxf4 {[%emt 0:00:30]} 19. Nxf4 {[%emt 0:00:06]} Rad8 {[%emt 0:00:48]} 20. Rad1 {[%emt 0:00:23]} Bb8 {[%emt 0:00:10]} 21. Rd5 {[%emt 0:00:55]} Ng4 {[%emt 0:01:23]} 22. Nh5 {[%emt 0:05:26]} Rfe8 {[%emt 0:05:55]} 23. Nxg7 {[%emt 0:00:39]} Re7 {[%emt 0:00:45]} 24. Nh5 {[%emt 0:03:11]} Be5 {[%emt 0:00:35]} 25. Bxe5 {[%emt 0:00:22]} Rxe5 {[%emt 0:00:31]} 26. Nf6+ {[%emt 0:00:16]} Nxf6 {[%emt 0:00:30]} 27. Rxe5 {[%emt 0:00:09]} Kf8 {[%emt 0:00:28]} 28. Bc4 {[%emt 0:00:18]} Ng4 {[%emt 0:00:28]} 29. Rxc5 {[%emt 0:00:30]} Bc6 {[%emt 0:00:30]} 30. Rf5 {[%emt 0:00:21]} 1-0

[Event "NOR-ch Elite 2019"]
[Site "Larvik"]
[Date "2019.07.09"]
[Round "5.7"]
[White "Mihajlov, Sebastian"]
[Black "Haldorsen, Benjamin"]
[Result "1/2-1/2"]
[ECO "A47"]
[WhiteElo "2375"]
[BlackElo "2444"]
[Annotator "NA"]
[PlyCount "82"]
[EventDate "2019.07.05"]
[EventType "swiss"]
[EventCountry "NOR"]
[SourceTitle "playchess.com"]
[Source "ChessBase"]
[SourceQuality "1"]
[TimeControl "40/5400+30:1800+30"]

1. d4 {[%emt 0:22:58]} Nf6 {[%emt 0:00:00]} 2. Nf3 {[%emt 0:00:35]} c5 {[%emt 0:00:01]} 3. e3 {[%emt 0:03:33]} b6 {[%emt 0:01:05]} 4. Bd3 {[%emt 0:01:20]} Bb7 {[%emt 0:00:21]} 5. O-O {[%emt 0:00:06]} e6 {[%emt 0:01:40]} 6. b3 {[%emt 0:00:09]} Nc6 {[%emt 0:04:59]} 7. Bb2 {[%emt 0:01:42]} Nb4 {[%emt 0:05:12]} 8. Be2 {[%emt 0:00:04]} Qc7 {[%emt 0:03:43]} 9. a3 {[%emt 0:02:47]} Nc6 {[%emt 0:00:13]} 10. c4 {[%emt 0:00:07]} cxd4 {[%emt 0:05:44]} 11. exd4 {[%emt 0:03:31]} d5 {[%emt 0:02:56]} 12. Nbd2 {[%emt 0:12:27]} Bd6 {[%emt 0:11:31]} 13. Rc1 {[%emt 0:00:52]} O-O {[%emt 0:02:58]} 14. c5 {[%emt 0:23:58]} bxc5 {[%emt 0:03:10]} 15. dxc5 {[%emt 0:00:01]} Bf4 {[%emt 0:00:17]} 16. b4 {[%emt 0:00:06]} a6 {[%emt 0:01:01]} 17. g3 {[%emt 0:02:24]} Bh6 {[%emt 0:00:15]} 18. Nh4 {[%emt 0:02:46]} Ne4 {[%emt 0:16:08]} 19. f4 {[%emt 0:01:49]} Rfd8 {[%emt 0:00:33]} 20. Qc2 {[%emt 0:02:53]} Rab8 {[%emt 0:09:35]} 21. Nb3 {[%emt 0:03:32]} f6 {[%emt 0:11:52]} 22. Rcd1 {[%emt 0:00:36]} Kh8 {[%emt 0:01:36]} 23. Bd3 {[%emt 0:01:49]} Rd7 {[%emt 0:02:32]} 24. Qe2 {[%emt 0:00:24]} Rdd8 {[%emt 0:05:50]} 25. Bxa6 {[%emt 0:03:30]} Bxa6 {[%emt 0:00:53]} 26. Qxa6 {[%emt 0:00:01]} e5 {[%emt 0:02:16]} 27. Nf5 {[%emt 0:00:15]} exf4 {[%emt 0:00:12]} 28. Nxh6 {[%emt 0:02:17]} fxg3 {[%emt 0:00:09]} 29. Qe2 {[%emt 0:00:04]} Nxb4 {[%emt 0:01:26]} 30. axb4 {[%emt 0:00:03]} Rxb4 {[%emt 0:00:12]} 31. Rd3 {[%emt 0:00:42]} Rdb8 {[%emt 0:02:21]} 32. Rff3 {[%emt 0:03:33]} gxh2+ {[%emt 0:01:26]} 33. Qxh2 {[%emt 0:00:18]} Qxh2+ {[%emt 0:01:13]} 34. Kxh2 {[%emt 0:00:03]} Nxc5 {[%emt 0:00:09]} 35. Nxc5 {[%emt 0:00:05]} Rxb2+ {[%emt 0:00:08]} 36. Kh3 {[%emt 0:00:04]} gxh6 {[%emt 0:00:10]} 37. Nd7 {[%emt 0:00:15]} Rd8 {[%emt 0:02:09]} 38. Nxf6 {[%emt 0:00:24]} d4 {[%emt 0:00:33]} 39. Rg3 {[%emt 0:00:14]} Rb4 {[%emt 0:01:08]} 40. Rd2 {[%emt 0:00:53]} Rc4 {[%emt 0:01:27]} 41. Rdg2 {[%emt 0:30:24]} Rc3 {[%emt 0:30:23]} 1/2-1/2

[Event "NOR-ch Elite 2019"]
[Site "Larvik"]
[Date "2019.07.09"]
[Round "5.8"]
[White "Haug, Johannes"]
[Black "Moen, Andreas G.R."]
[Result "1-0"]
[ECO "D04"]
[WhiteElo "2431"]
[BlackElo "2322"]
[Annotator "NA"]
[PlyCount "57"]
[EventDate "2019.07.05"]
[EventType "swiss"]
[EventCountry "NOR"]
[SourceTitle "playchess.com"]
[Source "ChessBase"]
[SourceQuality "1"]
[TimeControl "40/5400+30:1800+30"]

1. d4 {[%emt 0:00:38]} Nf6 {[%emt 0:02:37]} 2. Nf3 {[%emt 0:00:15]} d5 {[%emt 0:01:33]} 3. e3 {[%emt 0:00:05]} c5 {[%emt 0:06:45]} 4. Nbd2 {[%emt 0:03:04]} cxd4 {[%emt 0:09:57]} 5. exd4 {[%emt 0:00:26]} Nc6 {[%emt 0:00:06]} 6. c3 {[%emt 0:02:22]} a6 {[%emt 0:02:36]} 7. Bd3 {[%emt 0:00:07]} Bg4 {[%emt 0:00:04]} 8. O-O {[%emt 0:02:58]} e6 {[%emt 0:00:38]} 9. Qe1 {[%emt 0:03:13]} Bh5 {[%emt 0:13:13]} 10. Ne5 {[%emt 0:03:43]} Nxe5 {[%emt 0:03:04]} 11. dxe5 {[%emt 0:00:06]} Nd7 {[%emt 0:00:04]} 12. f4 {[%emt 0:05:40]} Nc5 {[%emt 0:00:59]} 13. Bb1 {[%emt 0:08:35]} Bg6 {[%emt 0:01:16]} 14. Nf3 {[%emt 0:03:43]} Nd3 {[%emt 0:19:28]} 15. Bxd3 {[%emt 0:03:21]} Bxd3 {[%emt 0:00:35]} 16. Rf2 {[%emt 0:00:04]} Be4 {[%emt 0:04:34]} 17. Be3 {[%emt 0:03:28]} Rc8 {[%emt 0:00:54]} 18. Nd4 {[%emt 0:04:39]} Bc5 {[%emt 0:01:10]} 19. b4 {[%emt 0:09:23]} Be7 {[%emt 0:05:16]} 20. f5 {[%emt 0:05:59]} exf5 {[%emt 0:01:33]} 21. Nxf5 {[%emt 0:00:42]} Bxf5 {[%emt 0:01:01]} 22. Rxf5 {[%emt 0:00:03]} Qd7 {[%emt 0:01:48]} 23. Qf2 {[%emt 0:05:38]} Rxc3 {[%emt 0:04:02]} 24. Rf1 {[%emt 0:05:01]} O-O {[%emt 0:02:41]} 25. Rxf7 {[%emt 0:01:37]} Qe8 {[%emt 0:05:26]} 26. e6 {[%emt 0:11:01]} Bf6 {[%emt 0:05:40]} 27. Bd4 {[%emt 0:03:16]} Rc2 {[%emt 0:03:35]} 28. Qxc2 {[%emt 0:00:24]} Bxd4+ {[%emt 0:00:06]} 29. Kh1 {[%emt 0:00:08]} 1-0

[Event "NOR-ch Elite 2019"]
[Site "Larvik"]
[Date "2019.07.09"]
[Round "5.9"]
[White "Mikalsen, Erlend"]
[Black "Andersen, Alf Roger"]
[Result "1/2-1/2"]
[ECO "C12"]
[WhiteElo "2404"]
[BlackElo "2149"]
[Annotator "NA"]
[PlyCount "61"]
[EventDate "2019.07.05"]
[EventType "swiss"]
[EventCountry "NOR"]
[SourceTitle "playchess.com"]
[Source "ChessBase"]
[SourceQuality "1"]
[TimeControl "40/5400+30:1800+30"]

1. e4 {[%emt 0:23:10]} e6 {[%emt 0:00:00]} 2. d4 {[%emt 0:00:05]} d5 {[%emt 0:00:00]} 3. Nc3 {[%emt 0:00:05]} Nf6 {[%emt 0:00:00]} 4. Bg5 {[%emt 0:00:05]} Bb4 {[%emt 0:00:09]} 5. e5 {[%emt 0:00:07]} h6 {[%emt 0:00:11]} 6. Bc1 {[%emt 0:00:30]} Ne4 {[%emt 0:01:27]} 7. Qg4 {[%emt 0:00:08]} g6 {[%emt 0:04:29]} 8. a3 {[%emt 0:00:06]} Bxc3+ {[%emt 0:02:31]} 9. bxc3 {[%emt 0:00:06]} c5 {[%emt 0:10:50]} 10. Bd3 {[%emt 0:01:41]} Qa5 {[%emt 0:09:57]} 11. Ne2 {[%emt 0:00:48]} cxd4 {[%emt 0:02:22]} 12. O-O {[%emt 0:10:29]} dxc3 {[%emt 0:09:11]} 13. Bxe4 {[%emt 0:02:21]} dxe4 {[%emt 0:00:07]} 14. Qg3 {[%emt 0:03:24]} Nc6 {[%emt 0:07:20]} 15. Nxc3 {[%emt 0:00:34]} Nd4 {[%emt 0:04:42]} 16. Kh1 {[%emt 0:11:54]} Nf5 {[%emt 0:03:51]} 17. Qh3 {[%emt 0:00:04]} e3 {[%emt 0:01:17]} 18. Bb2 {[%emt 0:01:15]} exf2 {[%emt 0:14:21]} 19. Ne4 {[%emt 0:01:09]} Kf8 {[%emt 0:07:37]} 20. Rad1 {[%emt 0:04:49]} Qb5 {[%emt 0:06:37]} 21. Bc3 {[%emt 0:08:03]} Qe2 {[%emt 0:00:16]} 22. Qd3 {[%emt 0:02:19]} Qxd3 {[%emt 0:00:58]} 23. Rxd3 {[%emt 0:00:04]} b6 {[%emt 0:01:03]} 24. Rxf2 {[%emt 0:00:43]} Kg7 {[%emt 0:01:48]} 25. Nd6 {[%emt 0:00:20]} Ba6 {[%emt 0:02:09]} 26. Rdf3 {[%emt 0:01:02]} h5 {[%emt 0:02:53]} 27. Nxf5+ {[%emt 0:00:27]} gxf5 {[%emt 0:00:23]} 28. Rg3+ {[%emt 0:00:07]} Kf8 {[%emt 0:01:23]} 29. Rd2 {[%emt 0:00:14]} Ke8 {[%emt 0:01:48]} 30. Bb4 {[%emt 0:00:42]} Rd8 {[%emt 0:01:08]} 31. Bd6 {[%emt 0:04:50]} 1/2-1/2

[Event "NOR-ch Elite 2019"]
[Site "Larvik"]
[Date "2019.07.09"]
[Round "5.10"]
[White "Tryggestad, Andreas Garberg"]
[Black "Kaasen, Tor Fredrik"]
[Result "1-0"]
[ECO "D85"]
[WhiteElo "2336"]
[BlackElo "2376"]
[Annotator "NA"]
[PlyCount "155"]
[EventDate "2019.07.05"]
[EventType "swiss"]
[EventCountry "NOR"]
[SourceTitle "playchess.com"]
[Source "ChessBase"]
[SourceQuality "1"]
[TimeControl "40/5400+30:1800+30"]

1. d4 {[%emt 0:00:00]} Nf6 {[%emt 0:05:39]} 2. c4 {[%emt 0:00:00]} g6 {[%emt 0:00:20]} 3. Nc3 {[%emt 0:00:00]} d5 {[%emt 0:00:30]} 4. cxd5 {[%emt 0:00:00]} Nxd5 {[%emt 0:00:05]} 5. e4 {[%emt 0:00:00]} Nxc3 {[%emt 0:00:07]} 6. bxc3 {[%emt 0:00:02]} Bg7 {[%emt 0:00:06]} 7. Nf3 {[%emt 0:00:05]} c5 {[%emt 0:00:21]} 8. Rb1 {[%emt 0:01:51]} O-O {[%emt 0:01:22]} 9. Be2 {[%emt 0:00:51]} b6 {[%emt 0:01:23]} 10. O-O {[%emt 0:00:39]} e6 {[%emt 0:02:15]} 11. Bg5 {[%emt 0:14:21]} Qd6 {[%emt 0:06:41]} 12. e5 {[%emt 0:04:04]} Qc7 {[%emt 0:02:41]} 13. Nd2 {[%emt 0:08:22]} Bb7 {[%emt 0:05:35]} 14. Nc4 {[%emt 0:00:36]} Bd5 {[%emt 0:02:04]} 15. Ne3 {[%emt 0:05:39]} Be4 {[%emt 0:07:19]} 16. Bd3 {[%emt 0:00:28]} Bxd3 {[%emt 0:01:52]} 17. Qxd3 {[%emt 0:00:06]} Nd7 {[%emt 0:03:19]} 18. Qe4 {[%emt 0:10:56]} Rae8 {[%emt 0:11:44]} 19. Bf4 {[%emt 0:04:28]} Rc8 {[%emt 0:01:15]} 20. h4 {[%emt 0:17:29]} Qc6 {[%emt 0:03:54]} 21. Qd3 {[%emt 0:00:23]} Rfd8 {[%emt 0:02:01]} 22. Qa6 {[%emt 0:02:19]} Rc7 {[%emt 0:07:23]} 23. Rfd1 {[%emt 0:10:31]} Nb8 {[%emt 0:01:48]} 24. Qe2 {[%emt 0:01:26]} Rcd7 {[%emt 0:14:05]} 25. Bg5 {[%emt 0:01:12]} Rc8 {[%emt 0:00:14]} 26. h5 {[%emt 0:08:23]} gxh5 {[%emt 0:05:18]} 27. d5 {[%emt 0:03:20]} exd5 {[%emt 0:00:20]} 28. Nf5 {[%emt 0:00:02]} Qg6 {[%emt 0:04:46]} 29. Ne7+ {[%emt 0:00:18]} Rxe7 {[%emt 0:00:04]} 30. Bxe7 {[%emt 0:00:01]} Re8 {[%emt 0:00:09]} 31. Bh4 {[%emt 0:00:27]} Rxe5 {[%emt 0:00:55]} 32. Qb5 {[%emt 0:01:29]} Nc6 {[%emt 0:01:59]} 33. Qa6 {[%emt 0:01:21]} Re4 {[%emt 0:02:18]} 34. Qc8+ {[%emt 0:00:27]} Bf8 {[%emt 0:00:03]} 35. Qh3 {[%emt 0:01:25]} Ne5 {[%emt 0:02:06]} 36. Kh1 {[%emt 0:00:25]} Qe6 {[%emt 0:01:36]} 37. Bg3 {[%emt 0:01:05]} h4 {[%emt 0:00:35]} 38. Bxe5 {[%emt 0:02:04]} Qxh3+ {[%emt 0:02:19]} 39. gxh3 {[%emt 0:00:01]} Rxe5 {[%emt 0:00:06]} 40. Rd3 {[%emt 0:01:59]} Bg7 {[%emt 0:00:14]} 41. Rbd1 {[%emt 0:30:18]} Re2 {[%emt 0:30:58]} 42. Re3 {[%emt 0:00:00]} Rxe3 {[%emt 0:00:00]} 43. fxe3 {[%emt 0:00:00]} Bxc3 {[%emt 0:00:00]} 44. Rxd5 {[%emt 0:00:00]} c4 {[%emt 0:00:00]} 45. Kg2 {[%emt 0:00:00]} Kf8 {[%emt 0:00:00]} 46. Rd7 {[%emt 0:00:00]} Bb4 {[%emt 0:00:00]} 47. Kf3 {[%emt 0:00:00]} c3 {[%emt 0:00:00]} 48. Ke2 {[%emt 0:00:00]} c2 {[%emt 0:00:00]} 49. Rc7 {[%emt 0:00:00]} Bc5 {[%emt 0:00:00]} 50. Kd2 {[%emt 0:00:00]} c1=Q+ {[%emt 0:00:00]} 51. Kxc1 {[%emt 0:00:00]} Bxe3+ {[%emt 0:00:00]} 52. Kc2 {[%emt 0:00:00]} a5 {[%emt 0:00:00]} 53. Kd3 {[%emt 0:00:00]} Bc5 {[%emt 0:00:00]} 54. a4 {[%emt 0:00:00]} Kg7 {[%emt 0:00:00]} 55. Ke4 {[%emt 0:00:00]} Kg6 {[%emt 0:00:00]} 56. Rc6+ {[%emt 0:00:00]} Kg5 {[%emt 0:00:48]} 57. Rc7 {[%emt 0:00:00]} f5+ {[%emt 0:02:37]} 58. Ke5 {[%emt 0:00:00]} f4 {[%emt 0:00:56]} 59. Rg7+ {[%emt 0:00:50]} Kh6 {[%emt 0:00:16]} 60. Rf7 {[%emt 0:00:08]} Be3 {[%emt 0:00:25]} 61. Kf5 {[%emt 0:02:34]} Bf2 {[%emt 0:05:19]} 62. Kxf4 {[%emt 0:00:25]} Kg6 {[%emt 0:00:05]} 63. Re7 {[%emt 0:00:17]} Kf6 {[%emt 0:00:45]} 64. Rxh7 {[%emt 0:00:07]} Ke6 {[%emt 0:00:05]} 65. Ke4 {[%emt 0:00:46]} Kd6 {[%emt 0:00:08]} 66. Rh5 {[%emt 0:00:13]} Kc6 {[%emt 0:00:08]} 67. Kd3 {[%emt 0:00:17]} Kb7 {[%emt 0:00:51]} 68. Kc4 {[%emt 0:00:08]} Ka6 {[%emt 0:00:04]} 69. Rh7 {[%emt 0:02:14]} Bg3 {[%emt 0:00:22]} 70. Kd5 {[%emt 0:00:08]} Bf2 {[%emt 0:00:38]} 71. Kc6 {[%emt 0:00:27]} Bg3 {[%emt 0:00:52]} 72. Rh8 {[%emt 0:03:45]} Ka7 {[%emt 0:00:03]} 73. Kb5 {[%emt 0:00:02]} Bf2 {[%emt 0:00:06]} 74. Rh7+ {[%emt 0:02:13]} Kb8 {[%emt 0:00:10]} 75. Kc6 {[%emt 0:00:49]} Ka8 {[%emt 0:00:13]} 76. Rf7 {[%emt 0:01:29]} Be3 {[%emt 0:00:49]} 77. Rf3 {[%emt 0:00:24]} Bc5 {[%emt 0:01:18]} 78. Rf4 {[%emt 0:00:05]} 1-0

[Event "NOR-ch Elite 2019"]
[Site "Larvik"]
[Date "2019.07.09"]
[Round "5.11"]
[White "Ranaldi, Lucas"]
[Black "Risting, Eivind Olav"]
[Result "1-0"]
[ECO "A13"]
[WhiteElo "2262"]
[BlackElo "2314"]
[Annotator "NA"]
[PlyCount "79"]
[EventDate "2019.07.05"]
[EventType "swiss"]
[EventCountry "NOR"]
[SourceTitle "playchess.com"]
[Source "ChessBase"]
[SourceQuality "1"]
[TimeControl "40/5400+30:1800+30"]

1. Nf3 {[%emt 0:00:00]} d5 {[%emt 0:01:58]} 2. e3 {[%emt 0:00:00]} Nf6 {[%emt 0:00:31]} 3. c4 {[%emt 0:00:00]} e6 {[%emt 0:00:41]} 4. b3 {[%emt 0:00:05]} b6 {[%emt 0:05:12]} 5. Bb2 {[%emt 0:01:49]} Bd6 {[%emt 0:02:51]} 6. cxd5 {[%emt 0:07:04]} exd5 {[%emt 0:00:20]} 7. Be2 {[%emt 0:00:31]} O-O {[%emt 0:01:25]} 8. O-O {[%emt 0:00:17]} Qe7 {[%emt 0:09:46]} 9. Nc3 {[%emt 0:02:05]} c6 {[%emt 0:05:42]} 10. Qc2 {[%emt 0:03:37]} Re8 {[%emt 0:13:41]} 11. Rfe1 {[%emt 0:08:06]} Bb7 {[%emt 0:06:34]} 12. Bf1 {[%emt 0:12:19]} Nbd7 {[%emt 0:01:31]} 13. g3 {[%emt 0:15:06]} Nc5 {[%emt 0:07:12]} 14. d3 {[%emt 0:02:18]} a5 {[%emt 0:16:42]} 15. Bg2 {[%emt 0:03:29]} a4 {[%emt 0:07:29]} 16. Rad1 {[%emt 0:07:56]} axb3 {[%emt 0:01:42]} 17. axb3 {[%emt 0:00:02]} Na6 {[%emt 0:02:28]} 18. e4 {[%emt 0:00:49]} dxe4 {[%emt 0:01:50]} 19. dxe4 {[%emt 0:00:40]} Nb4 {[%emt 0:02:21]} 20. Qb1 {[%emt 0:02:47]} Ng4 {[%emt 0:01:20]} 21. h3 {[%emt 0:05:42]} Ne5 {[%emt 0:02:30]} 22. Nd4 {[%emt 0:00:12]} Qc7 {[%emt 0:01:58]} 23. Ndb5 {[%emt 0:02:52]} cxb5 {[%emt 0:00:06]} 24. Nxb5 {[%emt 0:00:07]} Qc6 {[%emt 0:04:48]} 25. Nxd6 {[%emt 0:00:28]} Re7 {[%emt 0:01:05]} 26. Nf5 {[%emt 0:02:57]} Ree8 {[%emt 0:00:26]} 27. f4 {[%emt 0:00:57]} Ng6 {[%emt 0:00:35]} 28. Nxg7 {[%emt 0:00:55]} Red8 {[%emt 0:00:22]} 29. Nf5 {[%emt 0:01:22]} Qc2 {[%emt 0:00:33]} 30. Qxc2 {[%emt 0:06:50]} Nxc2 {[%emt 0:00:03]} 31. Rxd8+ {[%emt 0:00:30]} Rxd8 {[%emt 0:00:03]} 32. Re2 {[%emt 0:00:17]} Rd1+ {[%emt 0:00:31]} 33. Kf2 {[%emt 0:00:31]} Na1 {[%emt 0:00:25]} 34. Bxa1 {[%emt 0:05:23]} Rxa1 {[%emt 0:00:06]} 35. e5 {[%emt 0:01:43]} Bxg2 {[%emt 0:01:24]} 36. Kxg2 {[%emt 0:00:03]} Rb1 {[%emt 0:00:22]} 37. Re3 {[%emt 0:01:10]} Kf8 {[%emt 0:00:22]} 38. Kf3 {[%emt 0:00:41]} Ke8 {[%emt 0:00:23]} 39. e6 {[%emt 0:01:10]} fxe6 {[%emt 0:01:16]} 40. Rxe6+ {[%emt 0:00:11]} 1-0

[Event "NOR-ch Elite 2019"]
[Site "Larvik"]
[Date "2019.07.09"]
[Round "5.12"]
[White "Skrondal, Inge Sandstad"]
[Black "Vitenberg, Noam Aviv"]
[Result "1/2-1/2"]
[ECO "D42"]
[WhiteElo "2312"]
[BlackElo "2300"]
[Annotator "NA"]
[PlyCount "81"]
[EventDate "2019.07.05"]
[EventType "swiss"]
[EventCountry "NOR"]
[SourceTitle "playchess.com"]
[Source "ChessBase"]
[SourceQuality "1"]
[TimeControl "40/5400+30:1800+30"]

1. Nf3 {[%emt 0:00:00]} Nf6 {[%emt 0:00:00]} 2. c4 {[%emt 0:00:00]} e6 {[%emt 0:00:06]} 3. Nc3 {[%emt 0:00:00]} d5 {[%emt 0:00:08]} 4. d4 {[%emt 0:00:05]} c5 {[%emt 0:00:22]} 5. cxd5 {[%emt 0:00:38]} Nxd5 {[%emt 0:00:09]} 6. e3 {[%emt 0:01:54]} Nc6 {[%emt 0:01:46]} 7. Bd3 {[%emt 0:00:40]} Nxc3 {[%emt 0:05:06]} 8. bxc3 {[%emt 0:00:15]} Be7 {[%emt 0:00:16]} 9. O-O {[%emt 0:00:40]} O-O {[%emt 0:04:51]} 10. Qe2 {[%emt 0:16:37]} b6 {[%emt 0:02:40]} 11. Rd1 {[%emt 0:00:13]} Qc7 {[%emt 0:01:07]} 12. Bb2 {[%emt 0:05:48]} Bb7 {[%emt 0:11:17]} 13. Rac1 {[%emt 0:01:02]} Rac8 {[%emt 0:00:47]} 14. e4 {[%emt 0:11:50]} Na5 {[%emt 0:09:50]} 15. Qe3 {[%emt 0:16:06]} Qb8 {[%emt 0:01:46]} 16. h4 {[%emt 0:01:49]} Qa8 {[%emt 0:02:59]} 17. Re1 {[%emt 0:09:19]} cxd4 {[%emt 0:03:41]} 18. cxd4 {[%emt 0:00:07]} Rxc1 {[%emt 0:01:31]} 19. Rxc1 {[%emt 0:00:51]} Rc8 {[%emt 0:00:11]} 20. Rxc8+ {[%emt 0:04:08]} Qxc8 {[%emt 0:02:22]} 21. Qe2 {[%emt 0:00:26]} Nc6 {[%emt 0:10:44]} 22. Bc4 {[%emt 0:09:26]} Bf6 {[%emt 0:07:52]} 23. h5 {[%emt 0:02:48]} Qd8 {[%emt 0:10:03]} 24. d5 {[%emt 0:08:23]} exd5 {[%emt 0:06:15]} 25. Bxd5 {[%emt 0:00:21]} Bxb2 {[%emt 0:00:50]} 26. Qxb2 {[%emt 0:00:02]} Na5 {[%emt 0:00:31]} 27. Qd4 {[%emt 0:02:03]} Bxd5 {[%emt 0:06:37]} 28. exd5 {[%emt 0:00:04]} Nb7 {[%emt 0:01:24]} 29. g4 {[%emt 0:03:54]} h6 {[%emt 0:00:19]} 30. Kg2 {[%emt 0:00:46]} Qd6 {[%emt 0:00:27]} 31. Qa4 {[%emt 0:01:16]} Qxd5 {[%emt 0:01:54]} 32. Qxa7 {[%emt 0:00:03]} b5 {[%emt 0:00:57]} 33. a3 {[%emt 0:01:34]} Nd6 {[%emt 0:00:38]} 34. Qd4 {[%emt 0:00:28]} Qc6 {[%emt 0:01:03]} 35. Kg3 {[%emt 0:01:06]} Ne4+ {[%emt 0:01:34]} 36. Kf4 {[%emt 0:00:05]} Nf6 {[%emt 0:02:09]} 37. Qd8+ {[%emt 0:00:49]} Kh7 {[%emt 0:00:16]} 38. Qd3+ {[%emt 0:00:09]} Kg8 {[%emt 0:01:36]} 39. Qd8+ {[%emt 0:00:02]} Kh7 {[%emt 0:00:11]} 40. Qd3+ {[%emt 0:00:29]} Kg8 {[%emt 0:01:27] Ke4} 41. Qd8+ 1/2-1/2